[Event "Titled Tuesday Blitz December 7 2021"]
[White "Andreikin, Dmitry"]
[Black "Saydaliev, Saidakbar"]
[WhiteFideId "4158814"]
[BlackFideId "14203693"]
[WhiteElo "2736"]
[BlackElo "2279"]
[Result "1-0"]
[Round "03"]
[TimeControl "180+1"]
[Date "2021.12.07"]
[WhiteClock "0:01:04"]
[BlackClock "0:00:20"]

1. c4 {[%clk 0:03:00]}  Nf6 {[%clk 0:02:57]} 2. Nc3 {[%clk 0:02:59]}  e5 {[%clk 0:02:52]} 3. Nf3 {[%clk 0:02:59]}  Nc6 {[%clk 0:02:52]} 4. e4 {[%clk 0:02:59]}  Bb4 {[%clk 0:02:51]} 5. d3 {[%clk 0:02:58]}  d6 {[%clk 0:02:49]} 6. a3 {[%clk 0:02:58]}  Bc5 {[%clk 0:02:44]} 7. b4 {[%clk 0:02:58]}  Bb6 {[%clk 0:02:44]} 8. Na4 {[%clk 0:02:58]}  Bg4 {[%clk 0:02:42]} 9. Nxb6 {[%clk 0:02:57]}  axb6 {[%clk 0:02:42]} 10. Bb2 {[%clk 0:02:56]}  h6 {[%clk 0:02:22]} 11. Be2 {[%clk 0:02:55]}  Qd7 {[%clk 0:02:15]} 12. O-O {[%clk 0:02:52]}  g5 {[%clk 0:02:11]} 13. b5 {[%clk 0:02:47]}  Ne7 {[%clk 0:02:05]} 14. Bxe5 {[%clk 0:02:37]}  Qe6 {[%clk 0:01:23]} 15. Bb2 {[%clk 0:02:33]}  Bxf3 {[%clk 0:01:15]} 16. Bxf3 {[%clk 0:02:32]}  Ng6 {[%clk 0:01:15]} 17. d4 {[%clk 0:02:24]}  O-O {[%clk 0:01:01]} 18. e5 {[%clk 0:02:19]}  dxe5 {[%clk 0:01:00]} 19. dxe5 {[%clk 0:02:19]}  Nxe5 {[%clk 0:01:01]} 20. Re1 {[%clk 0:02:19]}  Nfd7 {[%clk 0:00:54]} 21. Bxb7 {[%clk 0:02:16]}  Rad8 {[%clk 0:00:53]} 22. Bd5 {[%clk 0:02:15]}  Qf5 {[%clk 0:00:50]} 23. Qe2 {[%clk 0:02:02]}  Rfe8 {[%clk 0:00:42]} 24. h3 {[%clk 0:01:59]}  Nf6 {[%clk 0:00:30]} 25. Rad1 {[%clk 0:01:16]}  Nxd5 {[%clk 0:00:25]} 26. cxd5 {[%clk 0:01:17]}  Nd3 {[%clk 0:00:20]} 27. Qxe8+ {[%clk 0:01:09]}  Rxe8 {[%clk 0:00:20]} 28. Rxe8+ {[%clk 0:01:09]}  Kh7 {[%clk 0:00:21]} 29. Rh8+ {[%clk 0:01:05]}  Kg6 {[%clk 0:00:21]} 30. Rg8+ {[%clk 0:01:06]}  Kh7 {[%clk 0:00:20]} 31. Rg7+ {[%clk 0:01:06]}  Kh8 {[%clk 0:00:20]} 32. Rxf7+ {[%clk 0:01:04]} 1-0


[Site "https://www.chess.com"]

[Event "Titled Tuesday Blitz December 7 2021"]
[White "Artemenko, Oleg"]
[Black "Ibrahimli, Murad"]
[WhiteFideId "14201798"]
[BlackFideId "13410229"]
[WhiteElo "2287"]
[BlackElo "2109"]
[Result "0-1"]
[Round "03"]
[TimeControl "180+1"]
[Date "2021.12.07"]
[WhiteClock "0:00:04"]
[BlackClock "0:00:10"]

1. d4 {[%clk 0:03:00]}  Nf6 {[%clk 0:02:59]} 2. Nc3 {[%clk 0:03:01]}  d5 {[%clk 0:02:59]} 3. Bf4 {[%clk 0:03:01]}  a6 {[%clk 0:02:57]} 4. e3 {[%clk 0:03:00]}  e6 {[%clk 0:02:49]} 5. g4 {[%clk 0:03:00]}  h6 {[%clk 0:02:45]} 6. Bg2 {[%clk 0:02:59]}  Bd6 {[%clk 0:02:44]} 7. h4 {[%clk 0:02:57]}  Bxf4 {[%clk 0:02:10]} 8. exf4 {[%clk 0:02:58]}  h5 {[%clk 0:02:10]} 9. g5 {[%clk 0:02:57]}  Ng8 {[%clk 0:02:11]} 10. Nf3 {[%clk 0:02:55]}  Ne7 {[%clk 0:02:10]} 11. Qd3 {[%clk 0:02:51]}  g6 {[%clk 0:02:07]} 12. O-O-O {[%clk 0:02:50]}  Nbc6 {[%clk 0:02:06]} 13. Rhe1 {[%clk 0:02:50]}  Qd6 {[%clk 0:02:01]} 14. Ne2 {[%clk 0:02:46]}  b6 {[%clk 0:01:55]} 15. Bh3 {[%clk 0:02:46]}  Bb7 {[%clk 0:01:53]} 16. Qc3 {[%clk 0:02:43]}  O-O-O {[%clk 0:01:51]} 17. Ne5 {[%clk 0:02:43]}  Rhf8 {[%clk 0:01:43]} 18. Ng1 {[%clk 0:02:39]}  Nxe5 {[%clk 0:01:27]} 19. fxe5 {[%clk 0:02:40]}  Qd7 {[%clk 0:01:26]} 20. Qf3 {[%clk 0:02:27]}  Kb8 {[%clk 0:01:25]} 21. Kb1 {[%clk 0:02:27]}  Rc8 {[%clk 0:01:24]} 22. c3 {[%clk 0:02:27]}  c5 {[%clk 0:01:23]} 23. Ne2 {[%clk 0:02:28]}  a5 {[%clk 0:01:21]} 24. Rc1 {[%clk 0:02:28]}  Ba6 {[%clk 0:01:20]} 25. Nf4 {[%clk 0:02:27]}  cxd4 {[%clk 0:01:08]} 26. cxd4 {[%clk 0:02:28]}  Qa4 {[%clk 0:01:08]} 27. Qe3 {[%clk 0:02:20]}  Nc6 {[%clk 0:01:00]} 28. b3 {[%clk 0:02:04]}  Qa3 {[%clk 0:00:53]} 29. Qd2 {[%clk 0:01:58]}  Kb7 {[%clk 0:00:30]} 30. Qb2 {[%clk 0:01:54]}  Qxb2+ {[%clk 0:00:27]} 31. Kxb2 {[%clk 0:01:55]}  Nxd4 {[%clk 0:00:27]} 32. Rcd1 {[%clk 0:01:43]}  Nf3 {[%clk 0:00:20]} 33. Rh1 {[%clk 0:01:42]}  Nxe5 {[%clk 0:00:20]} 34. Bg2 {[%clk 0:01:37]}  Ka7 {[%clk 0:00:18]} 35. Rhe1 {[%clk 0:01:36]}  Nc6 {[%clk 0:00:17]} 36. a3 {[%clk 0:01:33]}  Rc7 {[%clk 0:00:17]} 37. Bh3 {[%clk 0:01:20]}  Rfc8 {[%clk 0:00:17]} 38. Rd2 {[%clk 0:01:11]}  Nd8 {[%clk 0:00:15]} 39. Nxd5 {[%clk 0:01:04]}  exd5 {[%clk 0:00:15]} 40. Bxc8 {[%clk 0:01:04]}  Bxc8 {[%clk 0:00:16]} 41. Rxd5 {[%clk 0:01:02]}  Nc6 {[%clk 0:00:17]} 42. Re8 {[%clk 0:01:01]}  Be6 {[%clk 0:00:17]} 43. Rd2 {[%clk 0:00:57]}  Rd7 {[%clk 0:00:16]} 44. Rxd7+ {[%clk 0:00:50]}  Bxd7 {[%clk 0:00:17]} 45. Rf8 {[%clk 0:00:51]}  Be6 {[%clk 0:00:17]} 46. Kc3 {[%clk 0:00:51]}  Ne5 {[%clk 0:00:17]} 47. b4 {[%clk 0:00:37]}  axb4+ {[%clk 0:00:17]} 48. axb4 {[%clk 0:00:37]}  Nf3 {[%clk 0:00:17]} 49. b5 {[%clk 0:00:36]}  Kb7 {[%clk 0:00:17]} 50. Kd3 {[%clk 0:00:35]}  Kc7 {[%clk 0:00:17]} 51. Ke4 {[%clk 0:00:35]}  Nxh4 {[%clk 0:00:18]} 52. f4 {[%clk 0:00:35]}  Nf5 {[%clk 0:00:18]} 53. Ke5 {[%clk 0:00:35]}  h4 {[%clk 0:00:18]} 54. Rh8 {[%clk 0:00:35]}  Bd7 {[%clk 0:00:17]} 55. Kf6 {[%clk 0:00:34]}  Be6 {[%clk 0:00:18]} 56. Ke5 {[%clk 0:00:32]}  Kd7 {[%clk 0:00:17]} 57. Rh7 {[%clk 0:00:26]}  Ke7 {[%clk 0:00:17]} 58. Rh8 {[%clk 0:00:22]}  Bd7 {[%clk 0:00:17]} 59. Ke4 {[%clk 0:00:16]}  Bxb5 {[%clk 0:00:17]} 60. Kf3 {[%clk 0:00:17]}  Bc6+ {[%clk 0:00:17]} 61. Kg4 {[%clk 0:00:17]}  Bg2 {[%clk 0:00:17]} 62. Re8+ {[%clk 0:00:16]}  Kd6 {[%clk 0:00:14]} 63. Re6+ {[%clk 0:00:16]}  Kc5 {[%clk 0:00:13]} 64. Rf6 {[%clk 0:00:12]}  h3 {[%clk 0:00:12]} 65. Rxf7 {[%clk 0:00:05]}  h2 {[%clk 0:00:11]} 66. Rc7+ {[%clk 0:00:05]}  Bc6 {[%clk 0:00:09]} 67. Rc8 {[%clk 0:00:04]}  h1=Q {[%clk 0:00:08]} 68. Rxc6+ {[%clk 0:00:05]}  Qxc6 {[%clk 0:00:09]} 69. Kh3 {[%clk 0:00:04]}  Qf3+ {[%clk 0:00:09]} 70. Kh2 {[%clk 0:00:04]}  Ne3 {[%clk 0:00:09]} 71. f5 {[%clk 0:00:04]}  Qg2# {[%clk 0:00:10]} 0-1


[Site "https://www.chess.com"]

[Event "Titled Tuesday Blitz December 7 2021"]
[White "Atakhan, Abtin"]
[Black "Seletsky, Grigory"]
[WhiteFideId "22502203"]
[BlackFideId "14112191"]
[WhiteElo "2119"]
[BlackElo "2492"]
[Result "1-0"]
[Round "03"]
[TimeControl "180+1"]
[Date "2021.12.07"]
[WhiteClock "0:00:15"]
[BlackClock "0:00:08"]

1. e4 {[%clk 0:03:00]}  e6 {[%clk 0:00:41]} 2. d4 {[%clk 0:02:59]}  d5 {[%clk 0:00:41]} 3. e5 {[%clk 0:03:00]}  c5 {[%clk 0:00:40]} 4. c3 {[%clk 0:03:00]}  Qb6 {[%clk 0:00:39]} 5. Nf3 {[%clk 0:02:58]}  Nc6 {[%clk 0:00:39]} 6. Bd3 {[%clk 0:02:58]}  cxd4 {[%clk 0:00:38]} 7. O-O {[%clk 0:02:58]}  Bd7 {[%clk 0:00:39]} 8. Re1 {[%clk 0:02:57]}  Nge7 {[%clk 0:00:38]} 9. h4 {[%clk 0:02:58]}  dxc3 {[%clk 0:00:33]} 10. Nxc3 {[%clk 0:02:57]}  a6 {[%clk 0:00:34]} 11. Be3 {[%clk 0:02:56]}  Qd8 {[%clk 0:00:33]} 12. Na4 {[%clk 0:02:55]}  Nf5 {[%clk 0:00:27]} 13. Bxf5 {[%clk 0:02:52]}  exf5 {[%clk 0:00:27]} 14. Nb6 {[%clk 0:02:52]}  Rb8 {[%clk 0:00:26]} 15. Ng5 {[%clk 0:02:49]}  Be6 {[%clk 0:00:25]} 16. Qa4 {[%clk 0:02:30]}  d4 {[%clk 0:00:24]} 17. Nc4 {[%clk 0:02:09]}  dxe3 {[%clk 0:00:21]} 18. Rxe3 {[%clk 0:02:07]}  Be7 {[%clk 0:00:20]} 19. Rd1 {[%clk 0:02:04]}  Qc8 {[%clk 0:00:18]} 20. Nd6+ {[%clk 0:01:51]}  Bxd6 {[%clk 0:00:17]} 21. exd6 {[%clk 0:01:52]}  O-O {[%clk 0:00:17]} 22. Qf4 {[%clk 0:01:43]}  Qd7 {[%clk 0:00:17]} 23. Rg3 {[%clk 0:01:33]}  Bxa2 {[%clk 0:00:16]} 24. b3 {[%clk 0:01:32]}  f6 {[%clk 0:00:15]} 25. Nh3 {[%clk 0:01:28]}  Rfe8 {[%clk 0:00:15]} 26. Qa4 {[%clk 0:01:26]}  Re2 {[%clk 0:00:13]} 27. Nf4 {[%clk 0:01:24]}  Rc2 {[%clk 0:00:12]} 28. Nh5 {[%clk 0:01:23]}  Kh8 {[%clk 0:00:09]} 29. Rxg7 {[%clk 0:01:22]}  Qe6 {[%clk 0:00:09]} 30. d7 {[%clk 0:01:20]}  Qe2 {[%clk 0:00:09]} 31. Rd5 {[%clk 0:00:16]}  Qxf2+ {[%clk 0:00:08]} 32. Kh2 {[%clk 0:00:16]}  Qxh4+ {[%clk 0:00:08]} 33. Qxh4 {[%clk 0:00:15]} 1-0


[Site "https://www.chess.com"]

[Event "Titled Tuesday Blitz December 7 2021"]
[White "Azadaliyev, Jahandar"]
[Black "Bouget, Alexandre"]
[WhiteFideId "13425811"]
[BlackFideId "681318"]
[WhiteElo "1795"]
[BlackElo "2178"]
[Result "1-0"]
[Round "03"]
[TimeControl "180+1"]
[Date "2021.12.07"]
[WhiteClock "0:00:13"]
[BlackClock "0:00:02"]

1. d4 {[%clk 0:03:00]}  g6 {[%clk 0:02:52]} 2. c4 {[%clk 0:03:00]}  Bg7 {[%clk 0:02:50]} 3. Nf3 {[%clk 0:02:59]}  Nf6 {[%clk 0:02:44]} 4. g3 {[%clk 0:02:58]}  d5 {[%clk 0:02:44]} 5. cxd5 {[%clk 0:02:58]}  Nxd5 {[%clk 0:02:45]} 6. Nc3 {[%clk 0:02:58]}  O-O {[%clk 0:02:44]} 7. Bg2 {[%clk 0:02:58]}  Nc6 {[%clk 0:02:43]} 8. O-O {[%clk 0:02:57]}  Bf5 {[%clk 0:02:41]} 9. Nh4 {[%clk 0:02:48]}  Be6 {[%clk 0:02:38]} 10. e4 {[%clk 0:02:44]}  Nxc3 {[%clk 0:02:28]} 11. bxc3 {[%clk 0:02:45]}  Bc4 {[%clk 0:02:28]} 12. Re1 {[%clk 0:02:34]}  Na5 {[%clk 0:01:37]} 13. Ba3 {[%clk 0:02:28]}  Re8 {[%clk 0:01:22]} 14. Qc2 {[%clk 0:02:23]}  b6 {[%clk 0:01:11]} 15. Rad1 {[%clk 0:02:18]}  Rc8 {[%clk 0:01:10]} 16. Bc1 {[%clk 0:02:09]}  e6 {[%clk 0:01:06]} 17. Nf3 {[%clk 0:02:06]}  Qe7 {[%clk 0:01:03]} 18. Nd2 {[%clk 0:02:03]}  Ba6 {[%clk 0:01:01]} 19. e5 {[%clk 0:01:46]}  c5 {[%clk 0:00:59]} 20. Qb1 {[%clk 0:01:45]}  cxd4 {[%clk 0:00:52]} 21. cxd4 {[%clk 0:01:46]}  Red8 {[%clk 0:00:49]} 22. Ne4 {[%clk 0:01:45]}  Nc4 {[%clk 0:00:41]} 23. Bg5 {[%clk 0:01:43]}  Qa3 {[%clk 0:00:33]} 24. Bxd8 {[%clk 0:01:31]}  Rxd8 {[%clk 0:00:34]} 25. Nf6+ {[%clk 0:01:28]}  Kh8 {[%clk 0:00:30]} 26. d5 {[%clk 0:01:27]}  Nxe5 {[%clk 0:00:25]} 27. Rxe5 {[%clk 0:01:25]}  Bxf6 {[%clk 0:00:25]} 28. Re3 {[%clk 0:01:25]}  Qa4 {[%clk 0:00:22]} 29. Qb3 {[%clk 0:01:02]}  Bb5 {[%clk 0:00:18]} 30. Qxa4 {[%clk 0:00:55]}  Bxa4 {[%clk 0:00:19]} 31. Rd2 {[%clk 0:00:54]}  Bc6 {[%clk 0:00:14]} 32. Red3 {[%clk 0:00:48]}  Bb5 {[%clk 0:00:11]} 33. Rf3 {[%clk 0:00:47]}  Kg7 {[%clk 0:00:09]} 34. Re3 {[%clk 0:00:22]}  Bc6 {[%clk 0:00:05]} 35. d6 {[%clk 0:00:23]}  Bxg2 {[%clk 0:00:03]} 36. Kxg2 {[%clk 0:00:24]}  Rd7 {[%clk 0:00:03]} 37. f4 {[%clk 0:00:22]}  Bd8 {[%clk 0:00:03]} 38. Kf3 {[%clk 0:00:22]}  Kf8 {[%clk 0:00:03]} 39. Rc3 {[%clk 0:00:21]}  Ke8 {[%clk 0:00:04]} 40. Rc8 {[%clk 0:00:21]}  f6 {[%clk 0:00:04]} 41. Ke4 {[%clk 0:00:20]}  Kf7 {[%clk 0:00:04]} 42. g4 {[%clk 0:00:19]}  Ke8 {[%clk 0:00:04]} 43. f5 {[%clk 0:00:20]}  Kf7 {[%clk 0:00:04]} 44. fxe6+ {[%clk 0:00:18]}  Kxe6 {[%clk 0:00:05]} 45. Rd5 {[%clk 0:00:16]}  f5+ {[%clk 0:00:05]} 46. gxf5+ {[%clk 0:00:16]}  gxf5+ {[%clk 0:00:06]} 47. Rxf5 {[%clk 0:00:16]}  Rxd6 {[%clk 0:00:07]} 48. Re5+ {[%clk 0:00:16]}  Kf6 {[%clk 0:00:04]} 49. Re8 {[%clk 0:00:15]}  Be7 {[%clk 0:00:04]} 50. Rc7 {[%clk 0:00:16]}  Re6+ {[%clk 0:00:04]} 51. Kf3 {[%clk 0:00:16]}  a5 {[%clk 0:00:05]} 52. Rh8 {[%clk 0:00:14]}  Kg6 {[%clk 0:00:04]} 53. Rg8+ {[%clk 0:00:13]}  Kf6 {[%clk 0:00:04]} 54. Rg4 {[%clk 0:00:13]}  Rd6 {[%clk 0:00:03]} 55. Rf4+ {[%clk 0:00:13]}  Ke6 {[%clk 0:00:01]} 56. Re4+ {[%clk 0:00:13]}  Kf5 {[%clk 0:00:02]} 57. Rcxe7 {[%clk 0:00:14]}  Rd3+ {[%clk 0:00:02]} 58. Re3 {[%clk 0:00:14]}  Rd4 {[%clk 0:00:02]} 59. R3e5+ {[%clk 0:00:13]} 1-0


[Site "https://www.chess.com"]

[Event "Titled Tuesday Blitz December 7 2021"]
[White "Berezin, Viktor"]
[Black "Moksh Amit Doshi"]
[WhiteFideId "14107872"]
[BlackFideId "25064967"]
[WhiteElo "2310"]
[BlackElo "2245"]
[Result "1-0"]
[Round "03"]
[TimeControl "180+1"]
[Date "2021.12.07"]
[WhiteClock "0:01:21"]
[BlackClock "0:00:55"]

1. d4 {[%clk 0:03:00]}  Nf6 {[%clk 0:02:34]} 2. Nf3 {[%clk 0:02:59]}  g6 {[%clk 0:01:27]} 3. g3 {[%clk 0:02:51]}  Bg7 {[%clk 0:01:25]} 4. Bg2 {[%clk 0:02:51]}  O-O {[%clk 0:01:26]} 5. O-O {[%clk 0:02:50]}  d5 {[%clk 0:01:26]} 6. a4 {[%clk 0:02:51]}  a5 {[%clk 0:01:23]} 7. Nc3 {[%clk 0:02:50]}  c6 {[%clk 0:01:23]} 8. Ne5 {[%clk 0:02:48]}  Nbd7 {[%clk 0:01:22]} 9. Nxd7 {[%clk 0:02:48]}  Bxd7 {[%clk 0:01:22]} 10. e4 {[%clk 0:02:48]}  dxe4 {[%clk 0:01:23]} 11. Re1 {[%clk 0:02:45]}  Bg4 {[%clk 0:01:21]} 12. Qd2 {[%clk 0:02:42]}  Bf3 {[%clk 0:01:18]} 13. Bxf3 {[%clk 0:02:25]}  exf3 {[%clk 0:01:18]} 14. Qf4 {[%clk 0:02:18]}  Nd5 {[%clk 0:01:16]} 15. Nxd5 {[%clk 0:02:14]}  Qxd5 {[%clk 0:01:17]} 16. c3 {[%clk 0:02:12]}  Rfe8 {[%clk 0:01:15]} 17. Bd2 {[%clk 0:01:50]}  e5 {[%clk 0:01:13]} 18. dxe5 {[%clk 0:01:47]}  Bxe5 {[%clk 0:01:14]} 19. Qg5 {[%clk 0:01:46]}  Bg7 {[%clk 0:01:10]} 20. Qf4 {[%clk 0:01:39]}  Rad8 {[%clk 0:01:06]} 21. Be3 {[%clk 0:01:36]}  Re4 {[%clk 0:01:03]} 22. Qxf3 {[%clk 0:01:36]}  Rde8 {[%clk 0:01:02]} 23. Rad1 {[%clk 0:01:35]}  Qb3 {[%clk 0:01:01]} 24. Rd7 {[%clk 0:01:35]}  R4e7 {[%clk 0:00:57]} 25. Red1 {[%clk 0:01:27]}  Qxa4 {[%clk 0:00:55]} 26. Rxe7 {[%clk 0:01:27]}  Rxe7 {[%clk 0:00:56]} 27. Rd8+ {[%clk 0:01:28]}  Bf8 {[%clk 0:00:55]} 28. Bh6 {[%clk 0:01:21]} 1-0


[Site "https://www.chess.com"]

[Event "Titled Tuesday Blitz December 7 2021"]
[White "Bloomer, Josh"]
[Black "Pert, Richard G"]
[WhiteFideId "2020416"]
[BlackFideId "404748"]
[WhiteElo "2409"]
[BlackElo "2441"]
[Result "1-0"]
[Round "03"]
[TimeControl "180+1"]
[Date "2021.12.07"]
[WhiteClock "0:00:29"]
[BlackClock "0:00:34"]

1. e4 {[%clk 0:03:00]}  c5 {[%clk 0:02:59]} 2. Nf3 {[%clk 0:03:00]}  d6 {[%clk 0:02:59]} 3. d4 {[%clk 0:03:01]}  cxd4 {[%clk 0:03:00]} 4. Qxd4 {[%clk 0:03:01]}  Nc6 {[%clk 0:02:57]} 5. Qe3 {[%clk 0:03:02]}  Nf6 {[%clk 0:02:55]} 6. Be2 {[%clk 0:03:02]}  g6 {[%clk 0:02:55]} 7. O-O {[%clk 0:03:02]}  Bg7 {[%clk 0:02:55]} 8. h3 {[%clk 0:03:03]}  O-O {[%clk 0:02:56]} 9. Rd1 {[%clk 0:03:03]}  Nd7 {[%clk 0:02:50]} 10. Nc3 {[%clk 0:03:03]}  Nc5 {[%clk 0:02:50]} 11. a3 {[%clk 0:03:00]}  f5 {[%clk 0:02:48]} 12. Bc4+ {[%clk 0:02:33]}  Kh8 {[%clk 0:02:47]} 13. exf5 {[%clk 0:01:55]}  Bxf5 {[%clk 0:02:45]} 14. Ng5 {[%clk 0:01:54]}  Ne5 {[%clk 0:02:41]} 15. Ba2 {[%clk 0:01:46]}  Bxc2 {[%clk 0:02:36]} 16. Rf1 {[%clk 0:01:26]}  Bb3 {[%clk 0:02:18]} 17. Bxb3 {[%clk 0:01:21]}  Nxb3 {[%clk 0:02:18]} 18. Ne6 {[%clk 0:01:21]}  Qc8 {[%clk 0:02:18]} 19. Nxg7 {[%clk 0:01:09]}  Nxa1 {[%clk 0:02:10]} 20. f4 {[%clk 0:00:53]}  Nc4 {[%clk 0:01:45]} 21. Qxe7 {[%clk 0:00:44]}  Qd8 {[%clk 0:01:27]} 22. Qe6 {[%clk 0:00:39]}  Rc8 {[%clk 0:01:13]} 23. f5 {[%clk 0:00:37]}  Kxg7 {[%clk 0:01:10]} 24. f6+ {[%clk 0:00:34]}  Rxf6 {[%clk 0:01:08]} 25. Rxf6 {[%clk 0:00:32]}  Qxf6 {[%clk 0:01:08]} 26. Bh6+ {[%clk 0:00:32]}  Kxh6 {[%clk 0:01:04]} 27. Qxf6 {[%clk 0:00:33]}  Nb3 {[%clk 0:00:53]} 28. Ne4 {[%clk 0:00:32]}  Ne5 {[%clk 0:00:45]} 29. Nxd6 {[%clk 0:00:28]}  Rc1+ {[%clk 0:00:39]} 30. Kh2 {[%clk 0:00:28]}  Re1 {[%clk 0:00:36]} 31. Nf5+ {[%clk 0:00:28]}  Kh5 {[%clk 0:00:34]} 32. Qh4# {[%clk 0:00:29]} 1-0


[Site "https://www.chess.com"]

[Event "Titled Tuesday Blitz December 7 2021"]
[White "Bologan, Victor"]
[Black "Vlassov, Nikolai"]
[WhiteFideId "13900048"]
[BlackFideId "4103360"]
[WhiteElo "2472"]
[BlackElo "2407"]
[Result "1/2-1/2"]
[Round "03"]
[TimeControl "180+1"]
[Date "2021.12.07"]
[WhiteClock "0:00:18"]
[BlackClock "0:00:11"]

1. e4 {[%clk 0:02:59]}  Nc6 {[%clk 0:02:59]} 2. Nf3 {[%clk 0:02:57]}  d5 {[%clk 0:02:59]} 3. exd5 {[%clk 0:02:57]}  Qxd5 {[%clk 0:03:00]} 4. Nc3 {[%clk 0:02:57]}  Qa5 {[%clk 0:03:00]} 5. Bb5 {[%clk 0:02:52]}  Bd7 {[%clk 0:03:01]} 6. b4 {[%clk 0:02:50]}  Qxb4 {[%clk 0:03:00]} 7. Rb1 {[%clk 0:02:50]}  Qd6 {[%clk 0:02:59]} 8. O-O {[%clk 0:02:49]}  Nf6 {[%clk 0:02:56]} 9. d4 {[%clk 0:02:41]}  e6 {[%clk 0:02:45]} 10. Rb3 {[%clk 0:02:29]}  Na5 {[%clk 0:02:28]} 11. Ba3 {[%clk 0:02:23]}  Qf4 {[%clk 0:02:26]} 12. Bxf8 {[%clk 0:01:54]}  Nxb3 {[%clk 0:02:26]} 13. Bxg7 {[%clk 0:01:54]}  Rg8 {[%clk 0:02:26]} 14. Bxf6 {[%clk 0:01:54]}  Qxf6 {[%clk 0:02:11]} 15. Bxd7+ {[%clk 0:01:53]}  Kxd7 {[%clk 0:02:11]} 16. axb3 {[%clk 0:01:52]}  Rad8 {[%clk 0:02:08]} 17. Qe2 {[%clk 0:01:48]}  Kc8 {[%clk 0:02:08]} 18. Ne4 {[%clk 0:01:42]}  Qf4 {[%clk 0:02:06]} 19. Qe3 {[%clk 0:01:38]}  Rg4 {[%clk 0:01:58]} 20. Re1 {[%clk 0:01:28]}  b6 {[%clk 0:01:33]} 21. g3 {[%clk 0:01:21]}  Qxe3 {[%clk 0:01:31]} 22. Rxe3 {[%clk 0:01:20]}  Kb7 {[%clk 0:01:25]} 23. Nf6 {[%clk 0:01:10]}  Rg7 {[%clk 0:01:24]} 24. Kf1 {[%clk 0:01:07]}  a6 {[%clk 0:01:20]} 25. Ke2 {[%clk 0:01:07]}  a5 {[%clk 0:01:20]} 26. h4 {[%clk 0:01:07]}  b5 {[%clk 0:01:20]} 27. Ne4 {[%clk 0:01:05]}  Kb6 {[%clk 0:01:19]} 28. Nc3 {[%clk 0:01:04]}  Ra8 {[%clk 0:01:17]} 29. Re5 {[%clk 0:01:04]}  c6 {[%clk 0:01:16]} 30. Nb1 {[%clk 0:01:00]}  Kc7 {[%clk 0:01:09]} 31. Rc5 {[%clk 0:00:58]}  Kd6 {[%clk 0:01:06]} 32. Ne5 {[%clk 0:00:56]}  Ra6 {[%clk 0:01:06]} 33. c4 {[%clk 0:00:53]}  f6 {[%clk 0:01:01]} 34. Nd3 {[%clk 0:00:48]}  Rb7 {[%clk 0:01:00]} 35. Nd2 {[%clk 0:00:48]}  a4 {[%clk 0:01:00]} 36. Ne4+ {[%clk 0:00:45]}  Ke7 {[%clk 0:00:57]} 37. cxb5 {[%clk 0:00:44]}  cxb5 {[%clk 0:00:56]} 38. Rc1 {[%clk 0:00:40]}  Rba7 {[%clk 0:00:52]} 39. Nec5 {[%clk 0:00:39]}  Rd6 {[%clk 0:00:49]} 40. bxa4 {[%clk 0:00:37]}  bxa4 {[%clk 0:00:49]} 41. Ke3 {[%clk 0:00:37]}  a3 {[%clk 0:00:49]} 42. Ra1 {[%clk 0:00:37]}  Rb6 {[%clk 0:00:40]} 43. Ra2 {[%clk 0:00:36]}  Rb5 {[%clk 0:00:40]} 44. Kd2 {[%clk 0:00:36]}  e5 {[%clk 0:00:37]} 45. dxe5 {[%clk 0:00:34]}  fxe5 {[%clk 0:00:38]} 46. Ne4 {[%clk 0:00:34]}  Rb1 {[%clk 0:00:33]} 47. Nc3 {[%clk 0:00:34]}  Rb8 {[%clk 0:00:27]} 48. Nxe5 {[%clk 0:00:33]}  Ke6 {[%clk 0:00:17]} 49. Nd3 {[%clk 0:00:32]}  Rd8 {[%clk 0:00:14]} 50. Kc2 {[%clk 0:00:32]}  Kf5 {[%clk 0:00:14]} 51. f3 {[%clk 0:00:30]}  Rad7 {[%clk 0:00:13]} 52. g4+ {[%clk 0:00:30]}  Kf6 {[%clk 0:00:12]} 53. Ne4+ {[%clk 0:00:30]}  Kg7 {[%clk 0:00:12]} 54. Nec5 {[%clk 0:00:29]}  Ra7 {[%clk 0:00:11]} 55. g5 {[%clk 0:00:27]}  Kg6 {[%clk 0:00:10]} 56. Kc3 {[%clk 0:00:27]}  Kh5 {[%clk 0:00:10]} 57. f4 {[%clk 0:00:26]}  Kxh4 {[%clk 0:00:10]} 58. Kc4 {[%clk 0:00:26]}  Kg4 {[%clk 0:00:11]} 59. Ne5+ {[%clk 0:00:22]}  Kxf4 {[%clk 0:00:10]} 60. Nc6 {[%clk 0:00:22]}  Rda8 {[%clk 0:00:07]} 61. Nxa7 {[%clk 0:00:22]}  Rxa7 {[%clk 0:00:08]} 62. Kb5 {[%clk 0:00:19]}  Kxg5 {[%clk 0:00:08]} 63. Kb6 {[%clk 0:00:19]}  Ra8 {[%clk 0:00:09]} 64. Kb5 {[%clk 0:00:19]}  h5 {[%clk 0:00:08]} 65. Na4 {[%clk 0:00:20]}  h4 {[%clk 0:00:07]} 66. Rxa3 {[%clk 0:00:20]}  Kg4 {[%clk 0:00:08]} 67. Ra1 {[%clk 0:00:17]}  h3 {[%clk 0:00:08]} 68. Rg1+ {[%clk 0:00:16]}  Kf3 {[%clk 0:00:08]} 69. Rg7 {[%clk 0:00:16]}  h2 {[%clk 0:00:08]} 70. Rh7 {[%clk 0:00:16]}  Kg2 {[%clk 0:00:09]} 71. Rg7+ {[%clk 0:00:17]}  Kf2 {[%clk 0:00:09]} 72. Rf7+ {[%clk 0:00:16]}  Kg2 {[%clk 0:00:10]} 73. Rg7+ {[%clk 0:00:17]}  Kf2 {[%clk 0:00:11]} 74. Rf7+ {[%clk 0:00:17]}  Kg2 {[%clk 0:00:11]} 75. Rg7+ {[%clk 0:00:18]} 1/2-1/2


[Site "https://www.chess.com"]

[Event "Titled Tuesday Blitz December 7 2021"]
[White "Brunello, Marina"]
[Black "Goryachkina, Aleksandra"]
[WhiteFideId "822590"]
[BlackFideId "4147103"]
[WhiteElo "2328"]
[BlackElo "2441"]
[Result "0-1"]
[Round "03"]
[TimeControl "180+1"]
[Date "2021.12.07"]
[WhiteClock "0:01:05"]
[BlackClock "0:00:46"]

1. e4 {[%clk 0:03:00]}  e6 {[%clk 0:02:58]} 2. d4 {[%clk 0:02:57]}  d5 {[%clk 0:02:58]} 3. e5 {[%clk 0:02:57]}  c5 {[%clk 0:02:57]} 4. c3 {[%clk 0:02:57]}  Nc6 {[%clk 0:02:57]} 5. Nf3 {[%clk 0:02:57]}  Nge7 {[%clk 0:02:57]} 6. Na3 {[%clk 0:02:56]}  Nf5 {[%clk 0:02:36]} 7. Nc2 {[%clk 0:02:55]}  Bd7 {[%clk 0:02:27]} 8. Bd3 {[%clk 0:02:52]}  c4 {[%clk 0:02:14]} 9. Bxf5 {[%clk 0:02:46]}  exf5 {[%clk 0:02:14]} 10. h4 {[%clk 0:02:41]}  Be6 {[%clk 0:02:10]} 11. Ng5 {[%clk 0:02:25]}  Be7 {[%clk 0:02:05]} 12. g3 {[%clk 0:02:22]}  Qd7 {[%clk 0:02:02]} 13. Nh3 {[%clk 0:02:16]}  h6 {[%clk 0:01:36]} 14. Nf4 {[%clk 0:02:12]}  O-O-O {[%clk 0:01:29]} 15. h5 {[%clk 0:02:11]}  Bg5 {[%clk 0:01:20]} 16. b3 {[%clk 0:02:07]}  Bxf4 {[%clk 0:01:17]} 17. Bxf4 {[%clk 0:02:04]}  g5 {[%clk 0:01:14]} 18. hxg6 {[%clk 0:02:02]}  fxg6 {[%clk 0:01:14]} 19. Rxh6 {[%clk 0:02:01]}  Rxh6 {[%clk 0:01:14]} 20. Bxh6 {[%clk 0:02:01]}  Rh8 {[%clk 0:01:13]} 21. Qd2 {[%clk 0:01:59]}  Qh7 {[%clk 0:01:11]} 22. Bg5 {[%clk 0:01:44]}  Qh1+ {[%clk 0:01:06]} 23. Ke2 {[%clk 0:01:44]}  Qe4+ {[%clk 0:01:07]} 24. Ne3 {[%clk 0:01:44]}  f4 {[%clk 0:01:02]} 25. Bh4 {[%clk 0:01:14]}  Bg4+ {[%clk 0:00:46]} 26. Ke1 {[%clk 0:01:07]}  fxe3 {[%clk 0:00:46]} 27. Qxe3 {[%clk 0:01:05]}  Qh1+ {[%clk 0:00:46]} 0-1


[Site "https://www.chess.com"]